fUST/lending_fUST_20251230
["ID","MTS","AMOUNT","RATE_DAILY","PERIOD"]
[400036563,1767045047235,-156.78044487,0.00022382,5]
[400036564,1767045047247,-1354.10611933,0.00022465,2]
[400036565,1767045047259,-500.0,0.00022465,2]
[400036566,1767045047269,-500.0,0.00022465,2]
[400036567,1767045047280,-500.0,0.00022465,2]
[400036568,1767045047291,-500.0,0.00022465,2]
[400036569,1767045047302,-1000.0,0.00022465,2]
[400036570,1767045047312,-500.0,0.00022465,2]
[400036571,1767045047323,-502.9,0.00022465,2]
[400036572,1767045047335,-893.04,0.00022465,2]
[400036573,1767045047346,-994.31,0.00022465,2]
[400036574,1767045047356,-500.0,0.00022465,2]
[400036575,1767045047367,-4821.6,0.00022465,2]
[400036576,1767045047379,-500.0,0.00022465,2]
[400036577,1767045047390,-501.1,0.00022465,2]
[400036578,1767045047400,-500.0,0.00022465,2]
[400036579,1767045047412,-878.29,0.00022465,2]
[400036580,1767045047422,-680.8,0.00022465,2]
[400036581,1767045047433,-500.0,0.00022465,2]
[400036582,1767045047444,-500.0,0.00022465,2]
[400036583,1767045047456,-570.17,0.00022465,2]
[400036584,1767045047466,-967.31,0.00022465,2]
[400036585,1767045047478,-498.10670326,0.00022465,2]
[400036586,1767045047490,-296.4,0.00022474,2]
[400036587,1767045047503,-1354.10611933,0.00022739,2]
[400036588,1767045047513,-500.0,0.00022739,2]
[400036589,1767045047523,-500.0,0.00022739,2]
[400036590,1767045047534,-500.0,0.00022739,2]
[400036591,1767045047545,-500.0,0.00022739,2]
[400036592,1767045047555,-568.41416315,0.00022739,2]
[400036593,1767045047566,-500.0,0.00022739,2]
[400036594,1767045047576,-502.9,0.00022739,2]
[400036595,1767045047587,-893.04,0.00022739,2]
[400036596,1767045047598,-994.31,0.00022739,2]
[400036597,1767045047609,-4821.6,0.00022739,2]
[400036598,1767045047620,-500.0,0.00022739,2]
[400036599,1767045047631,-501.1,0.00022739,2]
[400036600,1767045047642,-500.0,0.00022739,2]
[400036601,1767045047653,-878.29,0.00022739,2]
[400036602,1767045047665,-680.8,0.00022739,2]
[400036603,1767045047675,-500.0,0.00022739,2]
[400036604,1767045047686,-500.0,0.00022739,2]
[400036605,1767045047697,-570.17,0.00022739,2]
[400036606,1767045047708,-967.31,0.00022739,2]
[400036607,1767045047719,-1000.0,0.00022783,10]
[400036608,1767045047730,-492.0,0.00022783,10]
[400036609,1767045047741,-500.0,0.00023008,2]
[400036610,1767045047751,-1354.10611933,0.00023013,2]
[400036611,1767045047762,-500.0,0.00023013,2]
[400036612,1767045047773,-500.0,0.00023013,2]
[400036613,1767045047784,-500.0,0.00023013,2]
[400036614,1767045047794,-500.0,0.00023013,2]
[400036615,1767045047806,-500.0,0.00023013,2]
[400036616,1767045047912,-502.9,0.00023013,2]
[400036617,1767045047924,-893.04,0.00023013,2]
[400036618,1767045047935,-994.31,0.00023013,2]
[400036619,1767045047947,-4821.6,0.00023013,2]
[400036620,1767045047959,-500.0,0.00023013,2]
[400036621,1767045047969,-501.1,0.00023013,2]
[400036622,1767045047980,-878.29,0.00023013,2]
[400036623,1767045047992,-680.8,0.00023013,2]
[400036624,1767045048003,-500.0,0.00023013,2]
[400036625,1767045048014,-500.0,0.00023013,2]
[400036626,1767045048024,-570.17,0.00023013,2]
[400036627,1767045048034,-967.31,0.00023013,2]
[400036628,1767045048045,-296.4,0.00023165,2]
[400036629,1767045048057,-1354.10611933,0.00023287,2]
[400036630,1767045048068,-500.0,0.00023287,2]
[400036631,1767045048079,-587.13463047,0.00023287,2]
[400036632,1767045048090,-500.0,0.00023287,2]
[400036633,1767045048100,-500.0,0.00023287,2]
[400036634,1767045048111,-500.0,0.00023287,2]
[400036635,1767045048122,-502.9,0.00023287,2]
[400036636,1767045048132,-893.04,0.00023287,2]
[400036638,1767045048143,-994.31,0.00023287,2]
[400036640,1767045048154,-4821.6,0.00023287,2]
[400036642,1767045048170,-500.0,0.00023287,2]
[400036644,1767045048181,-501.1,0.00023287,2]
[400036646,1767045048191,-878.29,0.00023287,2]
[400036647,1767045048203,-680.8,0.00023287,2]
[400036649,1767045048214,-500.0,0.00023287,2]
[400036650,1767045048225,-500.0,0.00023287,2]
[400036651,1767045048236,-570.17,0.00023287,2]
[400036652,1767045048246,-967.31,0.00023287,2]
[400036653,1767045048258,-2000.0,0.00023333,7]
[400036654,1767045048268,-500.0,0.00023414,2]
[400036655,1767045048279,-1354.10611933,0.00023561,2]
[400036657,1767045048289,-500.0,0.00023561,2]
[400036659,1767045048299,-284.04,0.00023561,2]
[400036661,1767045048310,-500.0,0.00023561,2]
[400036663,1767045048321,-500.0,0.00023561,2]
[400036664,1767045048331,-502.9,0.00023561,2]
[400036666,1767045048342,-893.04,0.00023561,2]
[400036668,1767045048352,-994.31,0.00023561,2]
[400036670,1767045048363,-4821.6,0.00023561,2]
[400036672,1767045048374,-500.0,0.00023561,2]
[400036674,1767045048385,-501.1,0.00023561,2]
[400036675,1767045048395,-878.29,0.00023561,2]
[400036676,1767045048405,-680.8,0.00023561,2]
[400036677,1767045048415,-155.7364656,0.00023561,2]
[400036678,1767045048426,-500.0,0.00023561,2]
[400036680,1767045048437,-570.17,0.00023561,2]
[400036681,1767045048447,-967.31,0.00023561,2]
[400036682,1767045048458,-330.01220646,0.00023606,2]
[400036683,1767045048470,-231341.82758664,0.0002376,2]
[400036684,1767045048480,-11239.3,0.000238,2]
[400036685,1767045048491,-500.0,0.00023807,2]
[400036686,1767045048502,-1354.10611933,0.00023835,2]
[400036688,1767045048513,-500.0,0.00023835,2]
[400036689,1767045048525,-200.0,0.00023835,2]
[400036690,1767045048537,-200.0,0.00023835,2]
[400036691,1767045048549,-200.0,0.00023835,2]
[400036692,1767045048561,-200.0,0.00023835,2]
[400036693,1767045048571,-200.0,0.00023835,2]
[400036694,1767045048582,-200.0,0.00023835,2]
[400036695,1767045048592,-200.0,0.00023835,2]
[400036696,1767045048604,-200.0,0.00023835,2]
[400036697,1767045048615,-500.0,0.00023835,2]
[400036698,1767045048625,-500.0,0.00023835,2]
[400036699,1767045048636,-502.9,0.00023835,2]
[400036700,1767045048647,-893.04,0.00023835,2]
[400036701,1767045048657,-994.31,0.00023835,2]
[400036702,1767045048667,-4821.6,0.00023835,2]
[400036703,1767045048678,-500.0,0.00023835,2]
[400036704,1767045048689,-501.1,0.00023835,2]
[400036705,1767045048698,-878.29,0.00023835,2]
[400036706,1767045048710,-680.8,0.00023835,2]
[400036707,1767045048720,-500.0,0.00023835,2]
[400036708,1767045048731,-570.17,0.00023835,2]
[400036709,1767045048742,-967.31,0.00023835,2]
[400036710,1767045048752,-296.4,0.00023856,2]
[400036711,1767045048762,-500.0,0.00023879,2]
[400036712,1767045048772,-1207.08,0.000241,7]
[400036713,1767045048782,-1354.10611933,0.00024109,2]
[400036714,1767045048793,-500.0,0.00024109,2]
[400036715,1767045048803,-200.0,0.00024109,2]
[400036716,1767045048815,-500.0,0.00024109,2]
[400036717,1767045048825,-500.0,0.00024109,2]
[400036718,1767045048834,-502.9,0.00024109,2]
[400036719,1767045048845,-893.04,0.00024109,2]
[400036720,1767045048856,-994.31,0.00024109,2]
[400036721,1767045048867,-4821.6,0.00024109,2]
[400036722,1767045048878,-500.0,0.00024109,2]
[400036723,1767045048888,-501.1,0.00024109,2]
[400036724,1767045048902,-878.29,0.00024109,2]
[400036725,1767045048912,-680.8,0.00024109,2]
[400036726,1767045048923,-500.0,0.00024109,2]
[400036727,1767045048936,-570.17,0.00024109,2]
[400036728,1767045048947,-967.31,0.00024109,2]
[400036729,1767045048959,-500.0,0.00024132,2]
[400036730,1767045048970,-500.0,0.00024142,2]
[400036731,1767045048980,-1354.10611933,0.00024383,2]
[400036732,1767045048990,-200.0,0.00024383,2]
[400036733,1767045048999,-500.0,0.00024383,2]
[400036734,1767045049009,-500.0,0.00024383,2]
[400036735,1767045049019,-502.9,0.00024383,2]
[400036736,1767045049031,-893.04,0.00024383,2]
[400036737,1767045049042,-994.31,0.00024383,2]
[400036738,1767045049053,-4821.6,0.00024383,2]
[400036739,1767045049066,-500.0,0.00024383,2]
[400036740,1767045049077,-501.1,0.00024383,2]
[400036741,1767045049089,-878.29,0.00024383,2]
[400036742,1767045049100,-680.8,0.00024383,2]
[400036743,1767045049113,-500.0,0.00024383,2]
[400036744,1767045049125,-570.17,0.00024383,2]
[400036745,1767045049136,-967.31,0.00024383,2]
[400036746,1767045049146,-157.12,0.000244,7]
[400036747,1767045049158,-2025.48,0.000244,14]
[400036748,1767045049170,-162.46,0.000244,7]
[400036749,1767045049181,-27632.5,0.000244,3]
[400036750,1767045049191,-500.0,0.00024482,2]
[400036751,1767045049203,-500.0,0.00024515,2]
[400036752,1767045049214,-15277.58765547,0.00024534,2]
[400036753,1767045049225,-296.4,0.00024546,2]
[400036754,1767045049238,-627.0,0.00024577,2]
[400036755,1767045049250,-2168.0,0.00024577,2]
[400036756,1767045049260,-1364.0,0.00024577,2]
[400036757,1767045049271,-219.855,0.00024577,2]
[400036758,1767045049283,-240.205,0.00024577,2]
[400036759,1767045049294,-250.0,0.00024577,2]
[400036760,1767045049304,-213.61,0.000246,2]
[400036761,1767045049316,-55265.0,0.000246,3]
[400036762,1767045049326,-500.0,0.00024608,2]
[400036763,1767045049337,-500.0,0.00024625,2]
[400036764,1767045049348,-1253.24308537,0.0002464,2]
[400036765,1767045049358,-1354.10611933,0.00024657,2]
[400036766,1767045049368,-200.0,0.00024657,2]
[400036767,1767045049378,-500.0,0.00024657,2]
[400036768,1767045049388,-500.0,0.00024657,2]
[400036769,1767045049398,-502.9,0.00024657,2]
[400036770,1767045049409,-893.04,0.00024657,2]
[400036771,1767045049419,-994.31,0.00024657,2]
[400036772,1767045049429,-4821.6,0.00024657,2]
[400036773,1767045049442,-500.0,0.00024657,2]
[400036774,1767045049454,-501.1,0.00024657,2]
[400036775,1767045049466,-878.29,0.00024657,2]
[400036776,1767045049477,-680.8,0.00024657,2]
[400036777,1767045049488,-500.0,0.00024657,2]
[400036778,1767045049500,-570.17,0.00024657,2]
[400036779,1767045049512,-967.31,0.00024657,2]
[400036780,1767045049522,-250.0,0.000248,10]
[400036781,1767045049532,-151.0,0.000248,7]
[400036782,1767045049543,-249.18,0.000248,7]
[400036783,1767045049554,-156.404391,0.000248,7]
[400036784,1767045049566,-151.0,0.000248,7]
[400036785,1767045049576,-151.0,0.000248,7]
[400036786,1767045049588,-151.0,0.000248,7]
[400036787,1767045049599,-151.0,0.000248,7]
[400036788,1767045049610,-223.767963,0.000248,7]
[400036789,1767045049621,-500.0,0.00024856,2]
[400036790,1767045049631,-151.0,0.000249,7]
[400036791,1767045049642,-167.933848,0.000249,7]
[400036792,1767045049652,-151.0,0.000249,7]
[400036793,1767045049663,-212.47584,0.000249,7]
[400036794,1767045049673,-151.0,0.000249,7]
[400036795,1767045049684,-212.47584,0.000249,7]
[400036796,1767045049694,-151.0,0.000249,7]
[400036797,1767045049704,-212.47584,0.000249,7]
[400036798,1767045049714,-212.47584,0.000249,7]
[400036799,1767045049725,-151.0,0.000249,7]
[400036800,1767045049736,-151.0,0.000249,7]
[400036801,1767045049745,-153.304838,0.000249,7]
[400036802,1767045049757,-151.0,0.000249,7]
[400036803,1767045049767,-151.0,0.000249,7]
[400036804,1767045049778,-151.0,0.000249,7]
[400036805,1767045049788,-167.905055,0.000249,7]
[400036806,1767045049798,-151.0,0.000249,7]
[400036807,1767045049810,-151.0,0.000249,7]
[400036808,1767045049820,-151.0,0.000249,7]
[400036809,1767045049832,-151.0,0.000249,7]
[400036810,1767045049842,-151.0,0.000249,7]
[400036811,1767045049853,-151.0,0.000249,7]
[400036812,1767045049863,-151.0,0.000249,7]
[400036813,1767045049875,-151.0,0.000249,7]
[400036814,1767045049885,-151.0,0.000249,7]
[400036815,1767045049897,-151.0,0.000249,7]
[400036816,1767045049907,-151.0,0.000249,7]
[400036817,1767045049917,-151.0,0.000249,7]
[400036818,1767045049928,-151.0,0.000249,7]
[400036819,1767045049939,-151.0,0.000249,7]
[400036820,1767045049949,-151.0,0.000249,7]
[400036821,1767045049960,-151.0,0.000249,7]
[400036822,1767045049971,-151.0,0.000249,7]
[400036823,1767045049982,-151.0,0.000249,7]
[400036824,1767045049993,-301.398599,0.000249,10]
[400036825,1767045050004,-253.301123,0.000249,7]
[400036826,1767045050015,-151.0,0.000249,7]
[400036827,1767045050025,-253.301123,0.000249,7]
[400036828,1767045050036,-151.0,0.000249,7]
[400036829,1767045050047,-253.301123,0.000249,7]
[400036830,1767045050058,-151.0,0.000249,7]
[400036832,1767045050068,-253.301123,0.000249,7]
[400036834,1767045050079,-151.0,0.000249,7]
[400036835,1767045050089,-151.0,0.000249,7]
[400036837,1767045050099,-151.0,0.000249,7]
[400036838,1767045050109,-151.0,0.000249,7]
[400036839,1767045050120,-151.0,0.000249,7]
[400036840,1767045050131,-151.0,0.000249,7]
[400036841,1767045050141,-151.0,0.000249,7]
[400036843,1767045050152,-151.0,0.000249,7]
[400036845,1767045050166,-151.0,0.000249,7]
[400036846,1767045050177,-151.0,0.000249,7]
[400036847,1767045050187,-151.0,0.000249,7]
[400036848,1767045050198,-151.0,0.000249,7]
[400036849,1767045050209,-151.0,0.000249,7]
[400036850,1767045050219,-151.0,0.000249,7]
[400036851,1767045050230,-151.0,0.000249,7]
[400036852,1767045050242,-204.630048,0.000249,7]
[400036853,1767045050253,-151.0,0.000249,7]
[400036854,1767045050263,-151.0,0.000249,7]
[400036855,1767045050273,-151.0,0.000249,7]
[400036856,1767045050285,-151.0,0.000249,7]
[400036857,1767045050296,-608174.953838,0.000249,2]
[400036858,1767045050307,-151.0,0.000249,7]
[400036859,1767045050317,-249.44556,0.000249,7]
[400036860,1767045050329,-151.0,0.000249,7]
[400036861,1767045050339,-262.001019,0.000249,7]
[400036862,1767045050349,-151.0,0.000249,7]
[400036863,1767045050358,-151.2146,0.000249,2]
[400036864,1767045050369,-151.0,0.000249,7]
[400036865,1767045050379,-298.968903,0.000249,7]
[400036866,1767045050390,-151.0,0.000249,7]
[400036867,1767045050400,-220.073602,0.000249,7]
[400036868,1767045050410,-151.0,0.000249,7]
[400036869,1767045050420,-151.0,0.000249,7]
[400036870,1767045050430,-157.035377,0.000249,7]
[400036871,1767045050444,-151.0,0.000249,7]
[400036872,1767045050456,-151.0,0.000249,7]
[400036873,1767045050469,-251.745364,0.000249,7]
[400036874,1767045050481,-151.0,0.000249,7]
[400036875,1767045050492,-151.0,0.000249,7]
[400036876,1767045050503,-1354.10611933,0.00024931,2]
[400036877,1767045050514,-200.0,0.00024931,2]
[400036878,1767045050525,-500.0,0.00024931,2]
[400036879,1767045050535,-156.233766,0.00024931,7]
[400036880,1767045050546,-151.0,0.00024931,7]
[400036881,1767045050645,-151.0,0.00024931,7]
[400036882,1767045050656,-186.30778711,0.00024931,2]
[400036883,1767045050668,-502.9,0.00024931,2]
[400036884,1767045050680,-893.04,0.00024931,2]
[400036885,1767045050694,-994.31,0.00024931,2]
[400036886,1767045050706,-4821.6,0.00024931,2]
[400036887,1767045050717,-500.0,0.00024931,2]
[400036888,1767045050729,-501.1,0.00024931,2]
[400036889,1767045050739,-878.29,0.00024931,2]
[400036890,1767045050751,-680.8,0.00024931,2]
[400036891,1767045050762,-500.0,0.00024931,2]
[400036892,1767045050773,-570.17,0.00024931,2]
[400036893,1767045050785,-967.31,0.00024931,2]
[400036894,1767045050796,-909.63292363,0.00024953,2]
[400036895,1767045050807,-2000.0,0.00024965,7]
[400036896,1767045050817,-2000.0,0.00024974,7]
[400036897,1767045050828,-1087.445364,0.0002498,5]
[400036898,1767045050839,-2000.0,0.00024982,7]
[400036899,1767045050849,-2000.0,0.00024991,7]
[400036900,1767045050861,-2000.0,0.00025,7]
[400036901,1767045050871,-1000.0,0.00025,5]
[400036902,1767045050882,-382.63332871,0.00025,7]
[400036903,1767045050892,-2000.0,0.00025,7]
[400036904,1767045050903,-31327.50318541,0.00025058,7]
[400036905,1767045050913,-1000.0,0.00025061,10]
[400036906,1767045050927,-791.0,0.00025061,10]
[400036907,1767045050938,-1354.10611933,0.00025205,2]
[400036908,1767045050949,-200.0,0.00025205,2]
[400036909,1767045050961,-500.0,0.00025205,2]
[400036910,1767045050972,-502.9,0.00025205,2]
[400036911,1767045050982,-220.862,0.00025205,9]
[400036912,1767045050993,-893.04,0.00025205,2]
[400036913,1767045051004,-994.31,0.00025205,2]
[400036914,1767045051015,-4821.6,0.00025205,2]
[400036915,1767045051027,-500.0,0.00025205,2]
[400036916,1767045051039,-501.1,0.00025205,2]
[400036917,1767045051050,-878.29,0.00025205,2]
[400036918,1767045051060,-680.8,0.00025205,2]
[400036919,1767045051070,-500.0,0.00025205,2]
[400036920,1767045051083,-570.17,0.00025205,2]
[400036921,1767045051095,-967.31,0.00025205,2]
[400036922,1767045051108,-160.0,0.00025205,15]
[400036923,1767045051120,-250.0,0.00025205,2]
[400036924,1767045051133,-296.4,0.00025237,2]
[400036925,1767045051145,-11239.3,0.000254,2]
[400036926,1767045051157,-1354.10611933,0.00025479,2]
[400036927,1767045051169,-200.0,0.00025479,2]
[400036928,1767045051180,-500.0,0.00025479,2]
[400036929,1767045051191,-502.9,0.00025479,2]
[400036930,1767045051203,-893.04,0.00025479,2]
[400036931,1767045051214,-994.31,0.00025479,2]
[400036932,1767045051226,-4821.6,0.00025479,2]
[400036933,1767045051239,-500.0,0.00025479,2]
[400036934,1767045051249,-501.1,0.00025479,2]
[400036935,1767045051260,-878.29,0.00025479,2]
[400036936,1767045051271,-680.8,0.00025479,2]
[400036937,1767045051284,-553.92230975,0.00025479,2]
[400036938,1767045051297,-570.17,0.00025479,2]
[400036939,1767045051309,-967.31,0.00025479,2]
[400036940,1767045051323,-361.27652076,0.00025606,2]
[400036941,1767045051335,-1354.10611933,0.00025753,2]
[400036942,1767045051349,-310.65116714,0.00025753,2]
[400036943,1767045051361,-575.42732568,0.00025753,2]
[400036944,1767045051375,-502.9,0.00025753,2]
[400036945,1767045051386,-893.04,0.00025753,2]
[400036946,1767045051396,-994.31,0.00025753,2]
[400036947,1767045051408,-4821.6,0.00025753,2]
[400036948,1767045051421,-500.0,0.00025753,2]
[400036949,1767045051432,-501.1,0.00025753,2]
[400036950,1767045051445,-878.29,0.00025753,2]
[400036951,1767045051457,-680.8,0.00025753,2]
[400036952,1767045051468,-570.17,0.00025753,2]
[400036953,1767045051480,-967.31,0.00025753,2]
[400036954,1767045051492,-350.0,0.00025753,2]
[400036955,1767045051504,-1207.08,0.000258,7]
[400036956,1767045051518,-296.4,0.00025928,2]
[400036957,1767045051529,-1354.10611933,0.00026027,2]
[400036958,1767045051543,-502.9,0.00026027,2]
[400036959,1767045051554,-893.04,0.00026027,2]
[400036960,1767045051567,-994.31,0.00026027,2]
[400036961,1767045051580,-4821.6,0.00026027,2]
[400036962,1767045051591,-212.18,0.00026027,2]
[400036963,1767045051602,-501.1,0.00026027,2]
[400036964,1767045051614,-878.29,0.00026027,2]
[400036965,1767045051624,-680.8,0.00026027,2]
[400036966,1767045051634,-570.17,0.00026027,2]
[400036967,1767045051645,-967.31,0.00026027,2]
[400036968,1767045051655,-15277.58765547,0.00026156,2]
[400036969,1767045051666,-1354.10611933,0.00026301,2]
[400036970,1767045051676,-502.9,0.00026301,2]
[400036971,1767045051687,-893.04,0.00026301,2]
[400036972,1767045051698,-994.31,0.00026301,2]
[400036973,1767045051709,-4821.6,0.00026301,2]
[400036974,1767045051721,-501.1,0.00026301,2]
[400036975,1767045051732,-878.29,0.00026301,2]
[400036976,1767045051743,-680.8,0.00026301,2]
[400036977,1767045051756,-570.17,0.00026301,2]
[400036978,1767045051766,-450.0,0.00026301,2]
[400036979,1767045051777,-2025.48,0.000264,14]
[400036980,1767045051789,-1354.10611933,0.00026575,2]
[400036981,1767045051800,-502.9,0.00026575,2]
[400036982,1767045051811,-893.04,0.00026575,2]
[400036983,1767045051821,-994.31,0.00026575,2]
[400036984,1767045051832,-4821.6,0.00026575,2]
[400036985,1767045051843,-501.1,0.00026575,2]
[400036986,1767045051852,-878.29,0.00026575,2]
[400036987,1767045051862,-680.8,0.00026575,2]
[400036988,1767045051872,-570.17,0.00026575,2]
[400036989,1767045051882,-428.0,0.000266,2]
[400036990,1767045051892,-296.4,0.00026619,2]
[400036991,1767045051903,-2000.0,0.00026667,7]
[400036992,1767045051914,-213.61,0.000267,2]
[400036993,1767045051924,-409.0,0.00026739,2]
[400036994,1767045051934,-409.0,0.00026746,2]
[400036995,1767045051944,-1354.10611933,0.00026849,2]
[400036996,1767045051955,-502.9,0.00026849,2]
[400036997,1767045051966,-893.04,0.00026849,2]
[400036998,1767045051976,-994.31,0.00026849,2]
[400036999,1767045051986,-4821.6,0.00026849,2]
[400037000,1767045051997,-501.1,0.00026849,2]
[400037001,1767045052008,-878.29,0.00026849,2]
[400037002,1767045052019,-680.8,0.00026849,2]
[400037003,1767045052031,-570.17,0.00026849,2]
[400037004,1767045052041,-550.0,0.00026849,2]
[400037005,1767045052051,-1024.67436269,0.00027,2]
[400037006,1767045052062,-409.0,0.00027023,2]
[400037007,1767045052071,-409.0,0.00027042,2]
[400037008,1767045052082,-1354.10611933,0.00027123,2]
[400037009,1767045052093,-502.9,0.00027123,2]
[400037010,1767045052104,-893.04,0.00027123,2]
[400037011,1767045052115,-994.31,0.00027123,2]
[400037012,1767045052125,-4821.6,0.00027123,2]
[400037013,1767045052136,-501.1,0.00027123,2]
[400037014,1767045052146,-878.29,0.00027123,2]
[400037015,1767045052158,-680.8,0.00027123,2]
[400037016,1767045052171,-570.17,0.00027123,2]
[400037017,1767045052183,-780.2045006,0.00027123,2]
[400037018,1767045052195,-3582.94952685,0.0002716,2]
[400037019,1767045052208,-3997.0,0.00027181,7]
[400037020,1767045052219,-296.4,0.00027309,2]
[400037021,1767045052231,-1354.10611933,0.00027397,2]
[400037022,1767045052245,-502.9,0.00027397,2]
[400037023,1767045052255,-893.04,0.00027397,2]
[400037024,1767045052267,-994.31,0.00027397,2]
[400037025,1767045052278,-4821.6,0.00027397,2]
[400037026,1767045052289,-223.7001258,0.00027397,2]
[400037027,1767045052301,-501.1,0.00027397,2]
[400037028,1767045052313,-878.29,0.00027397,2]
[400037029,1767045052324,-680.8,0.00027397,2]
[400037030,1767045052335,-570.17,0.00027397,2]
[400037031,1767045052348,-650.0,0.00027397,5]
[400037032,1767045052360,-151.0,0.00027397,7]
[400037033,1767045052371,-151.0,0.00027397,7]
[400037034,1767045052382,-151.0,0.00027397,7]
[400037035,1767045052394,-300.0,0.00027397,2]
[400037036,1767045052404,-300.0,0.00027397,2]
[400037037,1767045052416,-300.0,0.00027397,2]
[400037038,1767045052428,-300.0,0.00027397,2]
[400037039,1767045052441,-300.0,0.00027397,2]
[400037040,1767045052452,-300.0,0.00027397,2]
[400037041,1767045052463,-300.0,0.00027397,2]
[400037042,1767045052475,-300.0,0.00027397,2]
[400037043,1767045052486,-300.0,0.00027397,2]
[400037044,1767045052499,-151.0,0.00027397,7]
[400037045,1767045052513,-151.0,0.00027397,7]
[400037046,1767045052524,-151.0,0.00027397,7]
[400037047,1767045052536,-151.0,0.00027397,7]
[400037048,1767045052548,-403.601255,0.00027397,7]
[400037049,1767045052559,-403.601255,0.00027397,7]
[400037050,1767045052571,-403.601255,0.00027397,7]
[400037051,1767045052583,-403.601255,0.00027397,7]
[400037052,1767045052597,-403.601255,0.00027397,7]
[400037053,1767045052610,-403.601255,0.00027397,7]
[400037054,1767045052622,-403.601255,0.00027397,7]
[400037055,1767045052637,-403.601255,0.00027397,7]
[400037056,1767045052648,-500.0,0.00027397,5]
[400037057,1767045052659,-157.04098773,0.00027397,5]
[400037058,1767045052670,-11239.3,0.000274,2]
[400037059,1767045052681,-5000.0,0.00027499,7]
[400037060,1767045052691,-409.0,0.0002754,2]
[400037061,1767045052703,-2314.81949326,0.00027561,2]
[400037062,1767045052713,-1000.0,0.00027568,30]
[400037063,1767045052723,-1000.0,0.00027568,30]
[400037064,1767045052733,-627.0,0.00027577,2]
[400037065,1767045052743,-2156.0,0.00027577,2]
[400037066,1767045052754,-1364.0,0.00027577,2]
[400037067,1767045052765,-409.0,0.00027601,2]
[400037068,1767045052777,-1253.24308537,0.00027604,2]
[400037069,1767045052787,-392.54083506,0.00027606,2]
[400037070,1767045052797,-409.0,0.0002766,2]
[400037071,1767045052808,-1354.10611933,0.00027671,2]
[400037072,1767045052818,-502.9,0.00027671,2]
[400037073,1767045052827,-893.04,0.00027671,2]
[400037074,1767045052838,-994.31,0.00027671,2]
[400037075,1767045052848,-4821.6,0.00027671,2]
[400037076,1767045052857,-501.1,0.00027671,2]
[400037077,1767045052868,-878.29,0.00027671,2]
[400037078,1767045052879,-680.8,0.00027671,2]
[400037079,1767045052890,-570.17,0.00027671,2]
[400037080,1767045052901,-5000.0,0.00027699,14]
[400037081,1767045052911,-1207.08,0.000277,7]
[400037082,1767045052922,-338.2114975,0.0002773,2]
[400037083,1767045052932,-5000.0,0.00027761,2]
[400037084,1767045052943,-5000.0,0.00027765,15]